[Event "NOR-chT Eliteserien 2018-19"]
[Site "Norway"]
[Date "2019.01.13"]
[Round "6"]
[White "Nordquelle, Daniel"]
[Black "Machlik, Monika"]
[Result "1/2-1/2"]
[ECO "B12"]
[WhiteElo "2235"]
[BlackElo "2071"]
[Annotator "NA"]
[PlyCount "107"]
[EventDate "2018.11.02"]
[EventType "team-tourn"]
[EventCountry "NOR"]
[SourceTitle "playchess.com"]
[Source "ChessBase"]
[SourceQuality "1"]
[TimeControl "40/5400+30:1800+30"]

1. e4 {[%emt 0:00:00]} c6 {[%emt 0:00:00]} 2. d4 {[%emt 0:00:00]} d5 {[%emt 0:00:00]} 3. e5 {[%emt 0:00:00]} Bf5 {[%emt 0:00:20]} 4. h4 {[%emt 0:00:00]} h5 {[%emt 0:00:29]} 5. c4 {[%emt 0:00:07]} e6 {[%emt 0:00:18]} 6. Nc3 {[%emt 0:00:07]} Ne7 {[%emt 0:00:51]} 7. Nge2 {[%emt 0:00:09]} dxc4 {[%emt 0:00:50]} 8. Ng3 {[%emt 0:00:09]} b5 {[%emt 0:02:28]} 9. Bg5 {[%emt 0:02:35]} Bg6 {[%emt 0:32:28]} 10. Nge4 {[%emt 0:27:15]} Qb6 {[%emt 0:14:37]} 11. Nd6+ {[%emt 0:01:49]} Kd7 {[%emt 0:01:29]} 12. Qf3 {[%emt 0:02:55]} Nf5 {[%emt 0:05:51]} 13. Ncxb5 {[%emt 0:13:55]} Bxd6 {[%emt 0:16:41]} 14. Nxd6 {[%emt 0:01:45]} Nxd4 {[%emt 0:01:08]} 15. Qc3 {[%emt 0:31:02]} Nc2+ {[%emt 0:01:10]} 16. Kd1 {[%emt 0:00:07]} Nxa1 {[%emt 0:06:45]} 17. Be3 {[%emt 0:00:10]} Qc7 {[%emt 0:04:39]} 18. Qd2 {[%emt 0:00:27]} Rd8 {[%emt 0:03:19]} 19. Bxc4 {[%emt 0:02:02]} c5 {[%emt 0:02:35]} 20. Nxf7+ {[%emt 0:02:51]} Ke8 {[%emt 0:02:06]} 21. Nxd8 {[%emt 0:07:18]} Qxd8 {[%emt 0:00:18]} 22. Bb5+ {[%emt 0:00:28]} Nd7 {[%emt 0:00:15]} 23. Qd6 {[%emt 0:01:17]} Qe7 {[%emt 0:01:56]} 24. Qc6 {[%emt 0:00:12]} Rb8 {[%emt 0:00:40]} 25. Bg5 {[%emt 0:02:59]} Rxb5 {[%emt 0:00:38]} 26. Bxe7 {[%emt 0:01:17]} Rb6 {[%emt 0:00:22]} 27. Qa8+ {[%emt 0:01:20]} Rb8 {[%emt 0:00:43]} 28. Qxa7 {[%emt 0:00:33]} Kxe7 {[%emt 0:00:19]} 29. Kc1 {[%emt 0:00:35]} Nc2 {[%emt 0:00:17]} 30. Rh3 {[%emt 0:00:01]} Nd4 {[%emt 0:00:26]} 31. Qa6 {[%emt 0:01:07]} Nxe5 {[%emt 0:00:56]} 32. Rg3 {[%emt 0:00:01]} Kf6 {[%emt 0:00:28]} 33. f4 {[%emt 0:01:09]} Nec6 {[%emt 0:00:27]} 34. b3 {[%emt 0:00:40]} Nb4 {[%emt 0:00:31]} 35. Qd6 {[%emt 0:00:29]} Nbc6 {[%emt 0:00:36]} 36. Kb2 {[%emt 0:00:19]} Rd8 {[%emt 0:00:32]} 37. Qxc5 {[%emt 0:00:15]} Kf7 {[%emt 0:00:28]} 38. Qg5 {[%emt 0:00:45]} Ne7 {[%emt 0:00:15]} 39. Qe5 {[%emt 0:00:23]} Rd5 {[%emt 0:00:36]} 40. Qc7 {[%emt 0:00:30]} Nb5 {[%emt 0:00:38]} 41. Qc4 {[%emt 0:09:55]} Nf5 {[%emt 0:04:23]} 42. Rd3 {[%emt 0:01:09]} Nfd6 {[%emt 0:05:58]} 43. Qxd5 {[%emt 0:04:46]} exd5 {[%emt 0:00:10]} 44. Rxd5 {[%emt 0:00:05]} Be4 {[%emt 0:04:33]} 45. Rxh5 {[%emt 0:00:58]} Bxg2 {[%emt 0:00:56]} 46. a4 {[%emt 0:00:57]} Nc7 {[%emt 0:05:30]} 47. b4 {[%emt 0:01:45]} Nd5 {[%emt 0:05:44]} 48. b5 {[%emt 0:02:58]} Bf3 {[%emt 0:04:07]} 49. Rg5 {[%emt 0:01:03]} Nc4+ {[%emt 0:00:15]} 50. Kb3 {[%emt 0:00:48]} Na5+ {[%emt 0:01:09]} 51. Ka3 {[%emt 0:00:06]} Nc4+ {[%emt 0:00:38]} 52. Kb3 {[%emt 0:00:06]} Na5+ {[%emt 0:00:05]} 53. Ka3 {[%emt 0:00:02]} Nc4+ {[%emt 0:02:14]} 54. Kb3 {[%emt 0:00:30]} 1/2-1/2

[Event "NOR-chT Eliteserien 2018-19"]
[Site "Norway"]
[Date "2019.01.13"]
[Round "6"]
[White "Hammerstad, Asmund"]
[Black "Nielsen, Andre"]
[Result "1/2-1/2"]
[ECO "E32"]
[WhiteElo "2205"]
[BlackElo "2211"]
[Annotator "NA"]
[PlyCount "64"]
[EventDate "2018.11.02"]
[EventType "team-tourn"]
[EventCountry "NOR"]
[SourceTitle "playchess.com"]
[Source "ChessBase"]
[SourceQuality "1"]
[TimeControl "40/5400+30:1800+30"]

1. d4 {[%emt 0:00:00]} Nf6 {[%emt 0:00:00]} 2. c4 {[%emt 0:00:00]} e6 {[%emt 0:00:00]} 3. Nc3 {[%emt 0:00:09]} Bb4 {[%emt 0:00:17]} 4. Qc2 {[%emt 0:00:27]} O-O {[%emt 0:00:39]} 5. Nf3 {[%emt 0:00:29]} d6 {[%emt 0:03:30]} 6. e4 {[%emt 0:01:35]} e5 {[%emt 0:04:31]} 7. Bd3 {[%emt 0:08:46]} Re8 {[%emt 0:06:33]} 8. d5 {[%emt 0:02:33]} Na6 {[%emt 0:06:25]} 9. a3 {[%emt 0:03:50]} Bxc3+ {[%emt 0:00:35]} 10. Qxc3 {[%emt 0:00:09]} Nc5 {[%emt 0:00:43]} 11. Nd2 {[%emt 0:00:58]} a5 {[%emt 0:08:24]} 12. Bc2 {[%emt 0:02:09]} a4 {[%emt 0:01:13]} 13. O-O {[%emt 0:01:53]} Nh5 {[%emt 0:11:43]} 14. Qf3 {[%emt 0:07:16]} Nf4 {[%emt 0:02:16]} 15. Nb1 {[%emt 0:01:33]} Qg5 {[%emt 0:09:30]} 16. g3 {[%emt 0:03:10]} Nh3+ {[%emt 0:01:28]} 17. Kg2 {[%emt 0:01:29]} Qg6 {[%emt 0:01:03]} 18. Nc3 {[%emt 0:05:11]} Ng5 {[%emt 0:07:35]} 19. Bxg5 {[%emt 0:01:29]} Qxg5 {[%emt 0:00:08]} 20. Qd1 {[%emt 0:00:30]} Bd7 {[%emt 0:02:59]} 21. Kh1 {[%emt 0:03:31]} Bh3 {[%emt 0:02:28]} 22. Rg1 {[%emt 0:00:35]} h5 {[%emt 0:07:08]} 23. f3 {[%emt 0:03:26]} Bd7 {[%emt 0:00:55]} 24. Qe2 {[%emt 0:00:41]} Qh6 {[%emt 0:01:59]} 25. Qf2 {[%emt 0:00:55]} Re7 {[%emt 0:03:00]} 26. Rae1 {[%emt 0:01:21]} Rf8 {[%emt 0:01:17]} 27. Qe2 {[%emt 0:04:09]} b6 {[%emt 0:04:56]} 28. Qd1 {[%emt 0:00:22]} Ra8 {[%emt 0:00:20]} 29. Qe2 {[%emt 0:00:07]} Rae8 {[%emt 0:01:26]} 30. Qd1 {[%emt 0:00:11]} Ra8 {[%emt 0:00:40]} 31. Qe2 {[%emt 0:00:00]} Rae8 {[%emt 0:04:48]} 32. Qd1 {[%emt 0:00:11]} Ra8 {[%emt 0:00:10]} 1/2-1/2

[Event "NOR-chT Eliteserien 2018-19"]
[Site "Norway"]
[Date "2019.01.13"]
[Round "6"]
[White "Lindbol, Aleksander"]
[Black "Rygg, Andreas Gangstad"]
[Result "1/2-1/2"]
[ECO "A38"]
[WhiteElo "2204"]
[BlackElo "1869"]
[Annotator "NA"]
[PlyCount "117"]
[EventDate "2018.11.02"]
[EventType "team-tourn"]
[EventCountry "NOR"]
[SourceTitle "playchess.com"]
[Source "ChessBase"]
[SourceQuality "1"]
[TimeControl "40/5400+30:1800+30"]

1. c4 {[%emt 0:00:00]} c5 {[%emt 0:00:00]} 2. Nc3 {[%emt 0:00:02]} Nc6 {[%emt 0:00:04]} 3. g3 {[%emt 0:02:31]} g6 {[%emt 0:00:56]} 4. Bg2 {[%emt 0:00:22]} Bg7 {[%emt 0:00:05]} 5. Nf3 {[%emt 0:00:08]} d6 {[%emt 0:05:04]} 6. O-O {[%emt 0:01:12]} Bd7 {[%emt 0:02:10]} 7. Rb1 {[%emt 0:05:19]} Nf6 {[%emt 0:03:15]} 8. d3 {[%emt 0:00:36]} O-O {[%emt 0:01:30]} 9. a3 {[%emt 0:01:41]} e6 {[%emt 0:15:55]} 10. b4 {[%emt 0:09:53]} b6 {[%emt 0:02:56]} 11. e4 {[%emt 0:02:23]} Rc8 {[%emt 0:07:35]} 12. Nb5 {[%emt 0:24:09]} Qe7 {[%emt 0:05:48]} 13. bxc5 {[%emt 0:03:28]} dxc5 {[%emt 0:02:21]} 14. e5 {[%emt 0:06:14]} Ne8 {[%emt 0:04:51]} 15. Re1 {[%emt 0:02:32]} f6 {[%emt 0:04:09]} 16. exf6 {[%emt 0:01:12]} Bxf6 {[%emt 0:02:25]} 17. Bd2 {[%emt 0:01:42]} Nd6 {[%emt 0:01:20]} 18. Nc3 {[%emt 0:02:28]} Nd4 {[%emt 0:03:03]} 19. Nd5 {[%emt 0:06:47]} Nxf3+ {[%emt 0:04:07]} 20. Qxf3 {[%emt 0:04:29]} Qf7 {[%emt 0:00:34]} 21. Qxf6 {[%emt 0:01:50]} Qxf6 {[%emt 0:00:26]} 22. Nxf6+ {[%emt 0:00:05]} Rxf6 {[%emt 0:00:04]} 23. Bc3 {[%emt 0:00:18]} Rf7 {[%emt 0:00:42]} 24. Re2 {[%emt 0:00:51]} Rd8 {[%emt 0:06:04]} 25. g4 {[%emt 0:01:36]} Bc8 {[%emt 0:03:19]} 26. a4 {[%emt 0:02:31]} Nb7 {[%emt 0:03:53]} 27. Re3 {[%emt 0:01:08]} Rfd7 {[%emt 0:01:00]} 28. Be4 {[%emt 0:02:17]} Nd6 {[%emt 0:00:35]} 29. Bc6 {[%emt 0:00:39]} Rc7 {[%emt 0:01:17]} 30. Bg2 {[%emt 0:00:21]} Nb7 {[%emt 0:01:09]} 31. h4 {[%emt 0:02:05]} Rf7 {[%emt 0:02:13]} 32. Be5 {[%emt 0:02:10]} Rdf8 {[%emt 0:02:13]} 33. f4 {[%emt 0:00:57]} Na5 {[%emt 0:03:43]} 34. h5 {[%emt 0:02:31]} Bd7 {[%emt 0:02:41]} 35. Be4 {[%emt 0:04:14]} Nc6 {[%emt 0:02:02]} 36. hxg6 {[%emt 0:01:24]} hxg6 {[%emt 0:00:06]} 37. Bd6 {[%emt 0:01:31]} Rd8 {[%emt 0:00:06]} 38. Bxg6 {[%emt 0:02:28]} Rg7 {[%emt 0:00:05]} 39. Be4 {[%emt 0:00:01]} Rxg4+ {[%emt 0:01:42]} 40. Kf2 {[%emt 0:00:04]} Be8 {[%emt 0:01:38]} 41. Bf3 {[%emt 0:33:29]} Rg6 {[%emt 0:36:20]} 42. f5 {[%emt 0:00:00]} exf5 {[%emt 0:00:00]} 43. Bf4 {[%emt 0:00:00]} Bd7 {[%emt 0:00:00]} 44. Rh1 {[%emt 0:00:00]} Re8 {[%emt 0:00:00]} 45. Bd5+ {[%emt 0:00:00]} Kg7 {[%emt 0:00:00]} 46. Reh3 {[%emt 0:00:00]} Kf6 {[%emt 0:00:00]} 47. Rh7 {[%emt 0:00:00]} Re7 {[%emt 0:00:00]} 48. R1h6 {[%emt 0:00:00]} Rxh7 {[%emt 0:00:00]} 49. Rxh7 {[%emt 0:00:00]} Rg7 {[%emt 0:00:00]} 50. Rh6+ {[%emt 0:00:25]} Rg6 {[%emt 0:00:00]} 51. Rh8 {[%emt 0:00:04]} Nd4 {[%emt 0:00:00]} 52. Rf8+ {[%emt 0:00:23]} Ke7 {[%emt 0:00:00]} 53. Ra8 {[%emt 0:00:07]} Bxa4 {[%emt 0:00:00]} 54. Rxa7+ {[%emt 0:00:07]} Bd7 {[%emt 0:00:00]} 55. Be5 {[%emt 0:00:07]} Nc6 {[%emt 0:00:00]} 56. Bxc6 {[%emt 0:00:33]} Rxc6 {[%emt 0:00:00]} 57. Rb7 {[%emt 0:00:08]} Ke6 {[%emt 0:00:36]} 58. Bc7 {[%emt 0:00:37]} Bc8 {[%emt 0:00:25]} 59. Rxb6 {[%emt 0:00:18]} 1/2-1/2

[Event "NOR-chT Eliteserien 2018-19"]
[Site "Norway"]
[Date "2019.01.13"]
[Round "6"]
[White "Frisvold, Ole Emil"]
[Black "Moen, Ole Christian"]
[Result "0-1"]
[ECO "D73"]
[WhiteElo "2131"]
[BlackElo "2241"]
[Annotator "NA"]
[PlyCount "104"]
[EventDate "2018.11.02"]
[EventType "team-tourn"]
[EventCountry "NOR"]
[SourceTitle "playchess.com"]
[Source "ChessBase"]
[SourceQuality "1"]
[TimeControl "40/5400+30:1800+30"]

1. d4 {[%emt 0:00:00]} Nf6 {[%emt 0:00:00]} 2. Nf3 {[%emt 0:00:00]} g6 {[%emt 0:00:00]} 3. c4 {[%emt 0:00:00]} Bg7 {[%emt 0:00:00]} 4. Nc3 {[%emt 0:00:08]} O-O {[%emt 0:00:23]} 5. g3 {[%emt 0:01:55]} c6 {[%emt 0:03:55]} 6. Bg2 {[%emt 0:01:32]} d5 {[%emt 0:01:31]} 7. Ne5 {[%emt 0:01:54]} Be6 {[%emt 0:04:48]} 8. Qb3 {[%emt 0:00:33]} Qb6 {[%emt 0:04:59]} 9. c5 {[%emt 0:15:16]} Qxb3 {[%emt 0:00:30]} 10. axb3 {[%emt 0:00:30]} Nbd7 {[%emt 0:01:33]} 11. f4 {[%emt 0:04:28]} Nxe5 {[%emt 0:00:06]} 12. fxe5 {[%emt 0:00:29]} Nd7 {[%emt 0:00:05]} 13. O-O {[%emt 0:09:23]} f6 {[%emt 0:02:01]} 14. exf6 {[%emt 0:01:51]} Bxf6 {[%emt 0:01:50]} 15. e3 {[%emt 0:03:38]} Bf5 {[%emt 0:01:00]} 16. Nxd5 {[%emt 0:02:02]} cxd5 {[%emt 0:11:58]} 17. Bxd5+ {[%emt 0:00:11]} e6 {[%emt 0:00:16]} 18. Bxb7 {[%emt 0:00:44]} Rab8 {[%emt 0:00:07]} 19. Rxa7 {[%emt 0:01:40]} Rf7 {[%emt 0:00:30]} 20. c6 {[%emt 0:00:30]} Nb6 {[%emt 0:00:30]} 21. Bd2 {[%emt 0:00:30]} Bh3 {[%emt 0:00:30]} 22. Rf2 {[%emt 0:00:30]} Rbf8 {[%emt 0:00:30]} 23. Ra1 {[%emt 0:00:30]} Nd5 {[%emt 0:00:30]} 24. Re1 {[%emt 0:00:30]} Nc7 {[%emt 0:00:30]} 25. Bb4 {[%emt 0:00:30]} Rd8 {[%emt 0:00:30]} 26. Ba5 {[%emt 0:00:30]} Kg7 {[%emt 0:00:30]} 27. b4 {[%emt 0:00:30]} Rd5 {[%emt 0:00:30]} 28. Bc8 {[%emt 0:00:30]} Nb5 {[%emt 0:00:30]} 29. Bb6 {[%emt 0:00:30]} Rd6 {[%emt 0:00:30]} 30. d5 {[%emt 0:00:30]} Rxd5 {[%emt 0:26:05]} 31. e4 {[%emt 0:51:48]} Bd4 {[%emt 0:00:30]} 32. Bxd4+ {[%emt 0:00:30]} Rxd4 {[%emt 0:05:35]} 33. Rxf7+ {[%emt 0:01:17]} Kxf7 {[%emt 0:00:08]} 34. Ba6 {[%emt 0:01:02]} Rxb4 {[%emt 0:01:53]} 35. Bxb5 {[%emt 0:00:28]} Rxb5 {[%emt 0:00:10]} 36. Rc1 {[%emt 0:00:28]} e5 {[%emt 0:00:30]} 37. Rc2 {[%emt 0:00:30]} Ke7 {[%emt 0:00:18]} 38. Rd2 {[%emt 0:00:40]} Rc5 {[%emt 0:00:23]} 39. b4 {[%emt 0:00:25]} Rxc6 {[%emt 0:00:13]} 40. Rd5 {[%emt 0:00:30]} Rf6 {[%emt 0:00:09]} 41. Rd1 {[%emt 0:01:31]} Rd6 {[%emt 0:01:54]} 42. Rb1 {[%emt 0:02:17]} Rd2 {[%emt 0:00:55]} 43. b5 {[%emt 0:00:15]} Kd7 {[%emt 0:00:05]} 44. b6 {[%emt 0:00:23]} Kc8 {[%emt 0:00:03]} 45. Rb5 {[%emt 0:00:13]} Rg2+ {[%emt 0:00:07]} 46. Kh1 {[%emt 0:00:58]} Rf2 {[%emt 0:00:09]} 47. Rb1 {[%emt 0:00:06]} Kb7 {[%emt 0:00:07]} 48. Rg1 {[%emt 0:01:05]} h5 {[%emt 0:01:08]} 49. g4 {[%emt 0:00:23]} Bxg4 {[%emt 0:00:17]} 50. Rg3 {[%emt 0:00:12]} Rf3 {[%emt 0:00:52]} 51. Rg1 {[%emt 0:01:16]} Rb3 {[%emt 0:00:43]} 52. Rf1 {[%emt 0:00:40]} Bf3+ {[%emt 0:00:11]} 0-1

[Event "NOR-chT Eliteserien 2018-19"]
[Site "Norway"]
[Date "2019.01.13"]
[Round "6"]
[White "Soderstrom, Adrian"]
[Black "Vitenberg, Noam Aviv"]
[Result "0-1"]
[ECO "D38"]
[WhiteElo "2118"]
[BlackElo "2139"]
[Annotator "NA"]
[PlyCount "70"]
[EventDate "2018.11.02"]
[EventType "team-tourn"]
[EventCountry "NOR"]
[SourceTitle "playchess.com"]
[Source "ChessBase"]
[SourceQuality "1"]
[TimeControl "40/5400+30:1800+30"]

1. d4 {[%emt 0:00:00]} Nf6 {[%emt 0:02:22]} 2. c4 {[%emt 0:00:02]} e6 {[%emt 0:00:27]} 3. Nf3 {[%emt 0:00:08]} d5 {[%emt 0:00:29]} 4. Nc3 {[%emt 0:00:21]} Bb4 {[%emt 0:03:02]} 5. Qb3 {[%emt 0:01:00]} c5 {[%emt 0:07:49]} 6. dxc5 {[%emt 0:00:49]} Na6 {[%emt 0:07:28]} 7. a3 {[%emt 0:01:02]} Bxc3+ {[%emt 0:14:18]} 8. Qxc3 {[%emt 0:00:09]} Nxc5 {[%emt 0:00:42]} 9. cxd5 {[%emt 0:00:28]} Qxd5 {[%emt 0:03:55]} 10. Be3 {[%emt 0:00:28]} Nce4 {[%emt 0:02:24]} 11. Qe5 {[%emt 0:00:14]} Bd7 {[%emt 0:18:42]} 12. Rd1 {[%emt 0:05:32]} Qb3 {[%emt 0:04:59]} 13. Ng5 {[%emt 0:15:57]} Ba4 {[%emt 0:06:19]} 14. Qd4 {[%emt 0:38:50]} Qxd1+ {[%emt 0:00:34]} 15. Qxd1 {[%emt 0:00:01]} Bxd1 {[%emt 0:00:14]} 16. Nxe4 {[%emt 0:00:39]} O-O-O {[%emt 0:08:31]} 17. Nxf6 {[%emt 0:04:20]} gxf6 {[%emt 0:00:58]} 18. Bxa7 {[%emt 0:02:17]} Ba4 {[%emt 0:03:06]} 19. f4 {[%emt 0:02:28]} Rd1+ {[%emt 0:01:04]} 20. Kf2 {[%emt 0:00:02]} Rhd8 {[%emt 0:02:11]} 21. h4 {[%emt 0:03:48]} Rb1 {[%emt 0:00:59]} 22. Bc5 {[%emt 0:01:06]} Rdd1 {[%emt 0:00:58]} 23. Be7 {[%emt 0:00:31]} Rxb2 {[%emt 0:01:26]} 24. Bxf6 {[%emt 0:00:06]} Rb3 {[%emt 0:01:17]} 25. Be7 {[%emt 0:00:32]} Bb5 {[%emt 0:00:57]} 26. g4 {[%emt 0:01:11]} Rbb1 {[%emt 0:00:55]} 27. g5 {[%emt 0:01:11]} Kd7 {[%emt 0:00:51]} 28. Bb4 {[%emt 0:00:16]} Bc6 {[%emt 0:00:42]} 29. Rg1 {[%emt 0:00:19]} Rd4 {[%emt 0:01:14]} 30. Kg3 {[%emt 0:04:24]} Rb3+ {[%emt 0:00:19]} 31. Kg4 {[%emt 0:01:11]} Rd1 {[%emt 0:00:10]} 32. Ba5 {[%emt 0:03:24]} Rbb1 {[%emt 0:00:18]} 33. Rg3 {[%emt 0:00:17]} Rb5 {[%emt 0:02:00]} 34. Bc3 {[%emt 0:01:13]} Rxf1 {[%emt 0:00:07]} 35. Rd3+ {[%emt 0:00:15]} Rd5 {[%emt 0:00:08]} 0-1

[Event "NOR-chT Eliteserien 2018-19"]
[Site "Norway"]
[Date "2019.01.13"]
[Round "6"]
[White "Machlik, Edit"]
[Black "Tryggestad, Andreas Garberg"]
[Result "0-1"]
[ECO "D92"]
[WhiteElo "2112"]
[BlackElo "2333"]
[Annotator "NA"]
[PlyCount "130"]
[EventDate "2018.11.02"]
[EventType "team-tourn"]
[EventCountry "NOR"]
[SourceTitle "playchess.com"]
[Source "ChessBase"]
[SourceQuality "1"]
[TimeControl "40/5400+30:1800+30"]

1. d4 {[%emt 0:00:00]} Nf6 {[%emt 0:00:00]} 2. c4 {[%emt 0:00:00]} g6 {[%emt 0:00:00]} 3. Nc3 {[%emt 0:00:00]} d5 {[%emt 0:00:00]} 4. Nf3 {[%emt 0:00:00]} Bg7 {[%emt 0:00:32]} 5. Bf4 {[%emt 0:00:00]} dxc4 {[%emt 0:02:36]} 6. e4 {[%emt 0:02:51]} Bg4 {[%emt 0:01:45]} 7. Bxc4 {[%emt 0:00:28]} O-O {[%emt 0:04:46]} 8. Be2 {[%emt 0:05:23]} c6 {[%emt 0:06:13]} 9. Be3 {[%emt 0:05:00]} a5 {[%emt 0:11:41]} 10. O-O {[%emt 0:06:53]} Na6 {[%emt 0:00:23]} 11. Rc1 {[%emt 0:06:22]} Be6 {[%emt 0:02:36]} 12. h3 {[%emt 0:05:38]} Nb4 {[%emt 0:13:06]} 13. b3 {[%emt 0:14:46]} h6 {[%emt 0:03:55]} 14. a3 {[%emt 0:04:11]} Na6 {[%emt 0:00:40]} 15. Qc2 {[%emt 0:02:38]} Nd7 {[%emt 0:19:06]} 16. Rfd1 {[%emt 0:03:20]} Nb6 {[%emt 0:00:03]} 17. Ne5 {[%emt 0:08:43]} Nd7 {[%emt 0:07:10]} 18. Nf3 {[%emt 0:02:25]} Rc8 {[%emt 0:01:58]} 19. Bxa6 {[%emt 0:03:35]} bxa6 {[%emt 0:00:04]} 20. Na4 {[%emt 0:01:26]} Kh7 {[%emt 0:05:50]} 21. Nc5 {[%emt 0:16:43]} Nxc5 {[%emt 0:00:06]} 22. dxc5 {[%emt 0:00:26]} Qc7 {[%emt 0:00:01]} 23. Bd4 {[%emt 0:00:26]} Rfd8 {[%emt 0:04:57]} 24. Bxg7 {[%emt 0:01:12]} Kxg7 {[%emt 0:00:01]} 25. Nd4 {[%emt 0:02:01]} Qe5 {[%emt 0:01:09]} 26. Nxe6+ {[%emt 0:02:53]} Qxe6 {[%emt 0:00:02]} 27. Qc3+ {[%emt 0:00:57]} Kh7 {[%emt 0:05:53]} 28. Qc4 {[%emt 0:03:22]} Qxc4 {[%emt 0:03:06]} 29. bxc4 {[%emt 0:00:05]} Rb8 {[%emt 0:00:02]} 30. Rxd8 {[%emt 0:01:48]} Rxd8 {[%emt 0:00:01]} 31. Rb1 {[%emt 0:00:02]} Rd4 {[%emt 0:01:08]} 32. Rb6 {[%emt 0:00:19]} Rxe4 {[%emt 0:01:39]} 33. Rxa6 {[%emt 0:00:29]} Rxc4 {[%emt 0:00:01]} 34. Rxc6 {[%emt 0:01:13]} Kg7 {[%emt 0:00:11]} 35. Rc7 {[%emt 0:00:49]} Kf6 {[%emt 0:00:14]} 36. c6 {[%emt 0:00:53]} Ra4 {[%emt 0:00:53]} 37. Ra7 {[%emt 0:00:32]} Rxa3 {[%emt 0:00:06]} 38. c7 {[%emt 0:00:32]} Rc3 {[%emt 0:00:02]} 39. Ra6+ {[%emt 0:00:30]} e6 {[%emt 0:00:07]} 40. Rxa5 {[%emt 0:00:23]} Rxc7 {[%emt 0:00:05]} 41. g3 {[%emt 0:03:19]} g5 {[%emt 0:00:03]} 42. Ra4 {[%emt 0:00:47]} Kf5 {[%emt 0:02:30]} 43. Kg2 {[%emt 0:00:17]} Rc2 {[%emt 0:01:14]} 44. h4 {[%emt 0:03:21]} gxh4 {[%emt 0:01:00]} 45. Rxh4 {[%emt 0:00:06]} Kg5 {[%emt 0:00:10]} 46. Ra4 {[%emt 0:00:10]} f5 {[%emt 0:00:08]} 47. Ra6 {[%emt 0:00:55]} e5 {[%emt 0:02:16]} 48. Kf3 {[%emt 0:03:43]} Rc3+ {[%emt 0:01:28]} 49. Ke2 {[%emt 0:02:06]} f4 {[%emt 0:02:00]} 50. gxf4+ {[%emt 0:03:21]} exf4 {[%emt 0:00:03]} 51. f3 {[%emt 0:01:57]} Rc2+ {[%emt 0:01:40]} 52. Kf1 {[%emt 0:03:08]} Kh4 {[%emt 0:05:34]} 53. Rxh6+ {[%emt 0:04:03]} Kg3 {[%emt 0:00:04]} 54. Ra6 {[%emt 0:00:58]} Rf2+ {[%emt 0:02:54]} 55. Kg1 {[%emt 0:01:03]} Rb2 {[%emt 0:00:57]} 56. Kf1 {[%emt 0:01:11]} Rb3 {[%emt 0:00:06]} 57. Ke2 {[%emt 0:04:24]} Re3+ {[%emt 0:00:08]} 58. Kf1 {[%emt 0:00:39]} Rxf3+ {[%emt 0:00:10]} 59. Ke2 {[%emt 0:02:03]} Rf2+ {[%emt 0:02:48]} 60. Ke1 {[%emt 0:00:25]} Rb2 {[%emt 0:00:22]} 61. Ra8 {[%emt 0:02:31]} Rb1+ {[%emt 0:00:27]} 62. Ke2 {[%emt 0:00:45]} f3+ {[%emt 0:00:21]} 63. Kd2 {[%emt 0:00:27]} f2 {[%emt 0:00:34]} 64. Rg8+ {[%emt 0:00:25]} Kh4 {[%emt 0:00:07]} 65. Rh8+ {[%emt 0:00:07]} Kg5 {[%emt 0:00:05]} 0-1

[Event "NOR-chT Eliteserien 2018-19"]
[Site "Norway"]
[Date "2019.01.13"]
[Round "6"]
[White "Mikalsen, Harald"]
[Black "Diesen, Bruce"]
[Result "0-1"]
[ECO "A29"]
[WhiteElo "2006"]
[BlackElo "2144"]
[Annotator "NA"]
[PlyCount "60"]
[EventDate "2018.11.02"]
[EventType "team-tourn"]
[EventCountry "NOR"]
[SourceTitle "playchess.com"]
[Source "ChessBase"]
[SourceQuality "1"]
[TimeControl "40/5400+30:1800+30"]

1. c4 {[%emt 0:00:00]} Nf6 {[%emt 0:00:00]} 2. Nc3 {[%emt 0:00:00]} e5 {[%emt 0:01:12]} 3. g3 {[%emt 0:00:00]} Bb4 {[%emt 0:03:01]} 4. Bg2 {[%emt 0:01:42]} O-O {[%emt 0:01:25]} 5. a3 {[%emt 0:00:53]} Bxc3 {[%emt 0:01:05]} 6. dxc3 {[%emt 0:00:12]} d6 {[%emt 0:01:35]} 7. Nf3 {[%emt 0:31:09]} Nc6 {[%emt 0:00:25]} 8. O-O {[%emt 0:03:19]} Be6 {[%emt 0:08:00]} 9. b3 {[%emt 0:01:23]} h6 {[%emt 0:07:43]} 10. Qc2 {[%emt 0:02:37]} Qd7 {[%emt 0:03:45]} 11. Rd1 {[%emt 0:00:22]} Bf5 {[%emt 0:04:09]} 12. Qd2 {[%emt 0:13:41]} Rae8 {[%emt 0:01:39]} 13. b4 {[%emt 0:02:01]} Bh3 {[%emt 0:05:09]} 14. Qe1 {[%emt 0:05:33]} Bxg2 {[%emt 0:03:57]} 15. Kxg2 {[%emt 0:00:28]} Qe6 {[%emt 0:02:47]} 16. c5 {[%emt 0:08:24]} dxc5 {[%emt 0:02:04]} 17. Be3 {[%emt 0:07:06]} cxb4 {[%emt 0:05:03]} 18. axb4 {[%emt 0:01:38]} a6 {[%emt 0:01:40]} 19. Rdc1 {[%emt 0:01:08]} Rd8 {[%emt 0:00:53]} 20. c4 {[%emt 0:02:15]} e4 {[%emt 0:07:02]} 21. Nd2 {[%emt 0:00:53]} Rfe8 {[%emt 0:01:13]} 22. Nb3 {[%emt 0:00:28]} Ng4 {[%emt 0:01:25]} 23. Nc5 {[%emt 0:03:14]} Qc8 {[%emt 0:02:26]} 24. Qc3 {[%emt 0:00:46]} Nxe3+ {[%emt 0:00:30]} 25. fxe3 {[%emt 0:00:16]} h5 {[%emt 0:03:42]} 26. b5 {[%emt 0:01:34]} Nb8 {[%emt 0:00:35]} 27. Rcb1 {[%emt 0:04:12]} Rd6 {[%emt 0:02:59]} 28. bxa6 {[%emt 0:03:29]} bxa6 {[%emt 0:01:23]} 29. Qb2 {[%emt 0:01:43]} Nd7 {[%emt 0:05:02]} 30. Nxa6 {[%emt 0:02:06]} Rxa6 {[%emt 0:00:33]} 0-1